fUST/lending_fUST_20240118
["ID","MTS","AMOUNT","RATE_DAILY","PERIOD"]
[312008832,1705544724791,-3758.55897564,0.00018631,2]
[312008833,1705544724884,-76.70528522,0.00018631,2]
[312008834,1705544727658,3482.62955366,0.00018453,2]
[312008835,1705544731935,155.0,0.00018271,2]
[312008836,1705544732378,1467.7685682,0.00014122,2]
[312008837,1705544736444,547.3613648,0.00018271,2]
[312008838,1705544737167,155.0,0.00018271,2]
[312008839,1705544737314,-12000.0,0.00018639,2]
[312008840,1705544737457,-9753.16822436,0.00018639,2]
[312008841,1705544739653,10290.39182557,0.00018271,2]
[312008842,1705544739875,182.7245571,0.00018271,2]
[312008843,1705544740037,1526.88361733,0.00018271,2]
[312008844,1705544740062,238.18814753,0.00018271,2]
[312008845,1705544740277,3835.26426086,0.00018271,2]
[312008846,1705544741513,1261.88614,0.00018271,2]
[312008847,1705544743145,620.26741538,0.00018271,2]
[312008848,1705544743276,1274.86341873,0.00018271,2]
[312008849,1705544746445,343.88622744,0.00018271,2]
[312008850,1705544749167,155.0,0.00018271,2]
[312008851,1705544749923,169.80275254,0.00018271,2]
[312008852,1705544750542,3216.22820706,0.00018271,2]
[312008853,1705544752260,718.16824125,0.00014118,2]
[312008854,1705544752429,155.46202726,0.00018271,2]
[312008855,1705544755507,10290.39182557,0.00018271,2]
[312008856,1705544755693,534.59567802,0.00018271,2]
[312008857,1705544758453,547.3613648,0.00018271,2]
[312008858,1705544759133,619.83536004,0.00018271,2]
[312008859,1705544759175,1274.86341873,0.00018271,2]
[312008860,1705544759349,155.20339764,0.00018271,2]
[312008861,1705544759866,182.7245571,0.00018271,2]
[312008862,1705544760274,3835.26426086,0.00018271,2]
[312008863,1705544763127,155.0,0.00018271,2]
[312008864,1705544766434,342.75344633,0.00018271,2]
[312008865,1705544769360,154.9690062,0.00018271,2]
[312008866,1705544770518,3216.22820706,0.00018271,2]
[312008867,1705544771509,1261.88614,0.00018271,2]
[312008868,1705544775682,511.55851892,0.00018271,2]
[312008869,1705544775942,182.7245571,0.00018271,2]
[312008870,1705544777099,1176.71450991,0.00018271,2]
[312008871,1705544777334,155.0,0.00018271,2]
[312008872,1705544779131,155.0,0.00018271,2]
[312008873,1705544779512,1220.62975961,0.00018271,2]
[312008874,1705544780280,3835.26426086,0.00018271,2]
[312008875,1705544780442,547.57434478,0.00018271,2]
[312008876,1705544781131,620.05138771,0.00018271,2]
[312008877,1705544782547,342.75344633,0.00018271,2]
[312008878,1705544787171,155.0309938,0.00018271,2]
[312008879,1705544790524,280.70894478,0.00018271,2]
[312008880,1705544793142,713.31992229,0.00018271,2]
[312008881,1705544793419,190.42975937,0.00018271,2]
[312008882,1705544795506,525.71355624,0.00018271,2]
[312008883,1705544795991,182.7245571,0.00018271,2]
[312008884,1705544796302,3835.26426086,0.00018271,2]
[312008885,1705544797143,198.59406288,0.00018271,2]
[312008886,1705544800458,251.50730867,0.00018271,2]
[312008887,1705544802451,340.65464315,0.00018271,2]
[312008888,1705544805143,409.80847579,0.00018271,2]
[312008889,1705544809101,980.59542492,0.00018271,2]
[312008890,1705544809179,240.73753991,0.00018271,2]
[312008891,1705544814288,3835.26426086,0.00018271,2]
[312008892,1705544817964,182.7245571,0.00018271,2]
[312008893,1705544828297,3741.91080341,0.00018271,2]
[312008894,1705544831099,980.59542492,0.00018271,2]
[312008895,1705544833872,197.01519628,0.00018271,2]
[312008896,1705544849451,200.30884511,0.00017998,2]
[312008897,1705544853268,510.89021638,0.00018271,2]
[312008898,1705544871269,510.89021638,0.00018271,2]
[312008899,1705544889275,510.89021638,0.00018271,2]
[312008900,1705544911278,510.89021638,0.00018271,2]
[312008901,1705544912885,-543.81702582,0.00018797,2]
[312008902,1705544913051,-11.09830665,0.00018797,2]
[312008903,1705544913789,260.95401004,0.00018797,2]
[312008904,1705544914638,213.27624755,0.00018797,2]
[312008905,1705544916170,543.81702582,0.00018797,2]
[312008906,1705544916196,543.81702582,0.00018797,2]
[312008907,1705544916420,-2655.80659138,0.00018797,2]
[312008908,1705544916447,-616.3385083,0.00018797,2]
[312008909,1705544916647,154.9690062,0.00018797,2]
[312008910,1705544917062,241.45772428,0.00018797,2]
[312008911,1705544917089,402.48719962,0.00018797,2]
[312008912,1705544920517,-160.90351567,0.00018797,2]
[312008913,1705544920543,-292.47935905,0.00018797,2]
[312008914,1705544920636,-9.25271173,0.00018797,2]
[312008915,1705544920751,-444.13016299,0.00018797,2]
[312008916,1705544920823,-453.38287472,0.00018797,2]
[312008917,1705544920918,-368.12871644,0.00018797,2]
[312008918,1705544921667,521.75377805,0.00018797,2]
[312008919,1705544923992,561.25963229,0.00018797,2]
[312008920,1705544924982,84.88422165,0.00018796,2]
[312008921,1705544925009,70.08478455,0.00018796,2]
[312008922,1705544926294,260.68598296,0.00018796,2]
[312008923,1705544927032,1205.25558092,0.00018797,2]
[312008924,1705544927059,1240.32891907,0.00018797,2]
[312008925,1705544932371,510.89021638,0.00018271,2]
[312008926,1705544933842,-5509.20911022,0.00018797,2]
[312008927,1705544933949,-228.80151418,0.00018797,2]
[312008928,1705544933976,-1992.22396465,0.00018797,2]
[312008929,1705544934001,-875.79767203,0.00018797,2]
[312008930,1705544934026,-2013.72806625,0.00018797,2]
[312008931,1705544934051,-554.91533247,0.00018797,2]
[312008932,1705544934076,-260.95401004,0.00018797,2]
[312008933,1705544934101,-286.17658089,0.00018797,2]
[312008934,1705544934126,-278.19374927,0.00018797,2]
[312008935,1705544934185,-12000.0,0.00018797,2]
[312008938,1705544952375,510.89021638,0.00018271,2]
[312008940,1705544954671,-679.65547885,0.00018793,2]
[312008941,1705544954701,-2037.73028477,0.00018793,2]
[312008942,1705544954729,-902.97118459,0.00018794,2]
[312008943,1705544954758,-154.9690062,0.00018794,2]
[312008944,1705544954785,-1292.89594537,0.00018794,2]
[312008945,1705544954812,-1695.61964164,0.00018794,2]
[312008946,1705544954839,-154.9690062,0.00018794,2]
[312008947,1705544954867,-154.9690062,0.00018794,2]
[312008948,1705544954894,-175.10808693,0.00018794,2]
[312008949,1705544954921,-3127.66612241,0.00018794,2]
[312008950,1705544954947,-1588.91196854,0.00018795,2]
[312008951,1705544954974,-34.5342683,0.00018795,2]
[312008952,1705544955021,-154.9690062,0.00018793,2]
[312008953,1705544955047,-227.6178374,0.00018795,2]
[312008954,1705544955077,-11617.4131564,0.00018795,2]
[312008955,1705544955121,-4286.43367397,0.00018795,2]
[312008956,1705544955249,-156.84739668,0.00018795,2]
[312008957,1705544955291,-154.9690062,0.00018795,2]
[312008958,1705544955338,-154.9690062,0.00018795,2]
[312008959,1705544955385,-7246.78091695,0.00018795,2]
[312008960,1705544955427,-7963.22489345,0.00018795,2]
[312008961,1705544955454,-154.9690062,0.00018795,2]
[312008962,1705544955480,-361.23328326,0.00018795,2]
[312008963,1705544955505,-322.89759673,0.00018796,2]
[312008964,1705544955530,-170.76550909,0.00018796,2]
[312008965,1705544955556,-861.98869635,0.00018796,2]
[312008966,1705544955581,-2164.92101492,0.00018796,2]
[312008967,1705544955625,-12000.0,0.00018796,2]
[312008968,1705544955663,-12000.0,0.00018796,2]
[312008969,1705544955738,-10774.34416186,0.00018796,2]
[312008970,1705544955768,-272.37932438,0.00018796,2]
[312008971,1705544955796,-687.4903872,0.00018796,2]
[312008972,1705544955823,-265.78612656,0.00018796,2]
[312008973,1705544955891,526.3874506,0.00018793,2]
[312008974,1705544956042,-1312.46640318,0.00018796,2]
[312008975,1705544956068,-154.9690062,0.00018796,2]
[312008976,1705544956094,-1992.22396465,0.00018796,2]
[312008977,1705544956119,-261.75303825,0.00018796,2]
[312008978,1705544956145,-875.79767203,0.00018796,2]
[312008979,1705544956170,-419.79613991,0.00018796,2]
[312008980,1705544956196,-551.36608287,0.00018796,2]
[312008981,1705544957292,311.06098774,0.00018793,2]
[312008982,1705544957399,166.87143926,0.00018793,2]
[312008983,1705544958354,154.9690062,0.00018793,2]
[312008984,1705544959104,1739.74835498,0.00018793,2]
[312008985,1705544959749,1704.95338788,0.00018792,2]
[312008986,1705544959777,1704.95338788,0.00018792,2]
[312008987,1705544960199,-4496.78300966,0.00018792,2]
[312008988,1705544960297,-91.77108183,0.00018792,2]
[312008989,1705544961847,253.93572922,0.00018792,2]
[312008990,1705544963387,-576.17298836,0.00018796,2]
[312008991,1705544963491,-11.75863242,0.00018796,2]
[312008992,1705544963551,564.41435594,0.00018796,2]
[312008993,1705544963624,-576.17298836,0.00018796,2]
[312008994,1705544963728,-576.17298836,0.00018796,2]
[312008995,1705544964080,-12000.0,0.00018796,2]
[312008996,1705544964196,-6137.05383703,0.00018796,2]
[312008997,1705544965101,2001.1665667,0.00018792,2]
[312008998,1705544965480,164.53558271,0.00018796,2]
[312008999,1705544965570,154.9690062,0.00018796,2]
[312009000,1705544965889,3542.27500736,0.00018796,2]
[312009001,1705544965927,11659.12417648,0.00018796,2]
[312009002,1705544966213,6014.31276029,0.00018796,2]
[312009003,1705544966291,-11425.94169295,0.00018796,2]
[312009004,1705544966466,-11425.94169295,0.00018796,2]
[312009005,1705544966690,-12000.0,0.00018796,2]
[312009006,1705544966816,-12000.0,0.00018796,2]
[312009007,1705544967204,-12000.0,0.00018796,2]
[312009008,1705544967244,-12000.0,0.00018796,2]
[312009009,1705544967284,-4291.38737579,0.00018796,2]
[312009010,1705544967310,-155.57269291,0.00018796,2]
[312009011,1705544967336,-1292.89594537,0.00018796,2]
[312009012,1705544967361,-154.9690062,0.00018796,2]
[312009013,1705544967387,-6105.17497973,0.00018796,2]
[312009014,1705544967422,-9798.67185064,0.00018796,2]
[312009015,1705544967447,-175.10808693,0.00018796,2]
[312009016,1705544967590,861.98869635,0.00018796,2]
[312009017,1705544967849,154.9690062,0.00018796,2]
[312009018,1705544968146,156.84739668,0.00018796,2]
[312009019,1705544968250,852.4149632,0.00018796,2]
[312009020,1705544968276,155.1415904,0.00018796,2]
[312009021,1705544968336,680.8353266,0.00018796,2]
[312009022,1705544968583,1241.70084198,0.00018796,2]
[312009023,1705544969073,1252.54128949,0.00018796,2]
[312009024,1705544969186,154.9690062,0.00018795,2]
[312009025,1705544969295,265.2811879,0.00018795,2]
[312009026,1705544969434,3127.66612241,0.00018796,2]
[312009027,1705544969859,336.96808042,0.00018796,2]
[312009028,1705544970543,191.28367071,0.00018795,2]
[312009029,1705544971674,872.74944043,0.00018796,2]
[312009030,1705544971779,205.60057869,0.00018796,2]
[312009031,1705544972811,-2037.73028477,0.00018796,2]
[312009032,1705544972838,-111.11502038,0.00018796,2]
[312009033,1705544972897,-43.85398582,0.00018796,2]
[312009034,1705544972923,-902.97118459,0.00018796,2]
[312009035,1705544972948,-155.46025879,0.00018796,2]
[312009036,1705544973516,155.04882763,0.00018796,2]
[312009037,1705544973912,253.44293049,0.00018796,2]
[312009038,1705544973966,272.37932438,0.00018796,2]
[312009039,1705544974060,365.68879345,0.00018796,2]
[312009040,1705544974087,321.80159375,0.00018796,2]
[312009041,1705544974222,322.89759673,0.00018796,2]
[312009042,1705544974309,166.15265979,0.00018796,2]
[312009043,1705544974415,361.23328326,0.00018796,2]
[312009044,1705544974502,170.76550909,0.00018796,2]
[312009045,1705544974744,805.99466253,0.00018796,2]
[312009046,1705544974770,2148.84530515,0.00018796,2]
[312009047,1705544974795,3033.75706605,0.00018796,2]
[312009048,1705544974821,266.93173789,0.00018796,2]
[312009049,1705544974846,266.93173789,0.00018796,2]
[312009050,1705544975111,-12000.0,0.00018796,2]
[312009051,1705544975217,-12000.0,0.00018796,2]
[312009052,1705544975345,-6416.80466727,0.00018796,2]
[312009053,1705544975372,-159.85209185,0.00018796,2]
[312009054,1705544975399,-1739.74835498,0.00018796,2]
[312009055,1705544975473,311.06098774,0.00018796,2]
[312009056,1705544975555,1695.61964164,0.00018796,2]
[312009057,1705544975760,1676.91425652,0.00018796,2]
[312009058,1705544975787,6321.54661073,0.00018796,2]
[312009059,1705544975898,155.42134286,0.00018796,2]
[312009060,1705544976122,262.1521057,0.00018796,2]
[312009061,1705544977022,-500.67241205,0.00018797,2]
[312009062,1705544977107,1591.11240486,0.00018796,2]
[312009063,1705544977310,-10.21780433,0.00018797,2]
[312009064,1705544977355,490.45460772,0.00018796,2]
[312009065,1705544977380,500.67241205,0.00018796,2]
[312009066,1705544977405,1001.09694488,0.00018796,2]
[312009067,1705544977438,310.80291121,0.00018796,2]
[312009068,1705544977559,3428.59252649,0.00018796,2]
[312009069,1705544979101,1952.37948536,0.00018792,2]
[312009070,1705545019136,435.059889,0.00017794,2]
[312009121,1705545031744,-154.9690062,0.00018789,2]
[312009122,1705545031753,-242.95252514,0.0001879,2]
[312009123,1705545031762,-160.90351567,0.0001879,2]
[312009124,1705545031772,-260.68598296,0.0001879,2]
[312009125,1705545031781,-1265.64175415,0.0001879,2]
[312009126,1705545031790,-521.75377805,0.0001879,2]
[312009128,1705545031800,-213.27624755,0.00018791,2]
[312009130,1705545031810,-510.89021638,0.00018792,2]
[312009131,1705545031819,-48.78708134,0.00018792,2]
[312009132,1705545031828,-4215.42162672,0.00018793,2]
[312009133,1705545031840,-3739.37198349,0.00018793,2]
[312009134,1705545031849,-329.31129375,0.00018794,2]
[312009135,1705545031859,-361.23328326,0.00018794,2]
[312009136,1705545031868,-1992.22396465,0.00018794,2]
[312009137,1705545031877,-211.55502501,0.00018794,2]
[312009138,1705545031887,-361.78024191,0.00018794,2]
[312009139,1705545031896,-4548.5884814,0.00018794,2]
[312009152,1705545037998,-20887.67394558,0.00018792,2]
[312009154,1705545038007,-1209.08640933,0.00018794,2]
[312009156,1705545038017,-2033.10997564,0.00018795,2]
[312009157,1705545038025,-20860.81062343,0.00018795,2]
[312009158,1705545038034,-36939.26517678,0.00018795,2]
[312009159,1705545038043,-164.53558271,0.00018796,2]
[312009160,1705545038052,-155.73547352,0.00018796,2]
[312009161,1705545038062,-19687.81457688,0.00018796,2]
[312009162,1705545038071,-587.72935715,0.00018796,2]
[312009163,1705545038080,-266.10793814,0.00018796,2]
[312009164,1705545038090,-155.05735665,0.00018796,2]
[312009165,1705545038099,-154.9690062,0.00018796,2]
[312009166,1705545038108,-1245.61560358,0.00018796,2]
[312009167,1705545038117,-18891.91469266,0.00018796,2]
[312009168,1705545038126,-155.62695632,0.00018796,2]
[312009169,1705545038135,-286.7987064,0.00018796,2]
[312009170,1705545038145,-57834.76425602,0.00018796,2]
[312009171,1705545038174,-12768.18004058,0.00018796,2]
[312009172,1705545038251,-10554.63922538,0.00018796,2]
[312009173,1705545038342,-294.12674464,0.00018796,2]
[312009174,1705545038351,-861.98869635,0.00018796,2]
[312009175,1705545038361,-15903.84683037,0.00018796,2]
[312009176,1705545038371,-191.28367071,0.00018796,2]
[312009177,1705545038380,-1252.54128949,0.00018796,2]
[312009178,1705545038389,-432.34279635,0.00018796,2]
[312009179,1705545038398,-2037.73028477,0.00018796,2]
[312009180,1705545038407,-902.97118459,0.00018796,2]
[312009181,1705545038418,-493.27822562,0.00018796,2]
[312009182,1705545038427,-1695.61964164,0.00018796,2]
[312009183,1705545038437,-623.37467328,0.00018796,2]
[312009184,1705545038447,-323.42643759,0.00018796,2]
[312009185,1705545038456,-217.41680013,0.00018796,2]
[312009186,1705545038466,-173.6978715,0.00018796,2]
[312009187,1705545038475,-1739.74835498,0.00018796,2]
[312009188,1705545038486,-216.09883951,0.00018796,2]
[312009189,1705545038495,-155.36000076,0.00018797,2]
[312009190,1705545038504,-442.86929073,0.00018797,2]
[312009191,1705545038513,-353.23255082,0.00018797,2]
[312009192,1705545038522,-562.46039886,0.00018797,2]
[312009193,1705545038532,-301.01680158,0.00018797,2]
[312009194,1705545038541,-154.9690062,0.0001881,2]
[312009195,1705545038551,-2660.02550207,0.00018827,2]
[312009196,1705545038560,-155.25269516,0.00018829,2]
[312009197,1705545038570,-163.46867487,0.00018829,2]
[312009198,1705545038580,-183.05526173,0.00018829,2]
[312009199,1705545038591,-309.62844586,0.00018829,2]
[312009200,1705545038600,-246.83493766,0.00018829,2]
[312009201,1705545038609,-266.69466291,0.00018829,2]
[312009202,1705545038618,-10515.69454875,0.00018829,2]
[312009203,1705545038628,-176.16694423,0.00018829,2]
[312009204,1705545038638,-693.00952457,0.00018829,2]
[312009205,1705545038647,-233.02926469,0.00018832,2]
[312009206,1705545038656,-197.14058134,0.00018836,2]
[312009207,1705545038666,-155.45311026,0.00018836,2]
[312009208,1705545038675,-209.84320016,0.00018837,2]
[312009209,1705545038685,-155.94559635,0.00018846,2]
[312009210,1705545038694,-155.58491573,0.00018855,2]
[312009211,1705545038703,-155.45031513,0.00018855,2]
[312009212,1705545038712,-199.81267601,0.00018855,2]
[312009213,1705545038721,-167.12582178,0.00018855,2]
[312009214,1705545038734,-470.2557354,0.00018862,2]
[312009215,1705545038743,-260.97111048,0.00018862,2]
[312009216,1705545038753,-155.37755141,0.00018862,2]
[312009217,1705545038763,-155.45713133,0.00018862,2]
[312009218,1705545038772,-157.94207384,0.00018862,2]
[312009219,1705545038782,-155.1831596,0.00018862,2]
[312009220,1705545038791,-155.8634862,0.00018862,2]
[312009221,1705545038800,-379.64847549,0.00018862,2]
[312009222,1705545038810,-155.40216934,0.00018862,2]
[312009223,1705545038819,-13708.60036368,0.00018862,2]
[312009224,1705545038828,-175.2996158,0.00018862,2]
[312009225,1705545038838,-546.15273207,0.00018869,2]
[312009226,1705545038847,-155.29129351,0.00018869,2]
[312009227,1705545038856,-183.96535885,0.00018869,2]
[312009228,1705545038865,-155.31797269,0.00018869,2]
[312009229,1705545038874,-155.32671549,0.00018876,2]
[312009230,1705545038883,-2072.13666013,0.00018876,2]
[312009231,1705545038892,-2101.67947703,0.00018876,2]
[312009232,1705545038901,-521.18978843,0.00018876,2]
[312009233,1705545038910,-470.34681749,0.00018876,2]
[312009234,1705545038919,-6533.4596929,0.00018884,2]
[312009235,1705545038928,-688.82709207,0.000189,2]
[312009236,1705545038937,-1590.80489866,0.00019,2]
[312009237,1705545038946,-174.18605,0.00019178,2]
[312009238,1705545038956,-1125.42236376,0.000195,2]
[312009239,1705545038965,-155.34719469,0.0001951,2]
[312009240,1705545038975,-200.0,0.00019729,2]
[312009241,1705545038984,-164.6604734,0.00019821,2]
[312009242,1705545038993,-175.163184,0.00019821,2]
[312009243,1705545039003,-768.79008486,0.00019995,2]
[312009244,1705545039011,-154.9690062,0.0002,2]
[312009245,1705545039021,-2995.72102978,0.0002,2]
[312009246,1705545039030,-849.59512114,0.0002,2]
[312009247,1705545039039,-1196.96135251,0.0002,2]
[312009248,1705545039048,-678.05962952,0.0002,2]
[312009249,1705545039057,-154.9690062,0.0002,2]
[312009250,1705545039067,-154.9690062,0.0002,2]
[312009251,1705545039077,-176.93243673,0.0002,2]
[312009252,1705545039087,-154.98450155,0.0002,2]
[312009253,1705545039096,-154.98450155,0.0002,2]
[312009254,1705545039105,-155.16448353,0.0002,2]
[312009255,1705545039114,-156.71629179,0.0002,2]
[312009256,1705545039124,-154.9690062,0.0002,2]
[312009257,1705545039133,-570.6927824,0.0002,2]
[312009258,1705545039143,-154.9690062,0.0002,2]
[312009260,1705545039153,-238.02437486,0.0002,2]
[312009261,1705545039162,-187.4856675,0.0002,2]
[312009262,1705545039171,-155.0886973,0.00020092,2]
[312009263,1705545039180,-662.0973841,0.00020095,2]
[312009264,1705545039190,-24900.0,0.00020095,2]
[312009265,1705545039199,-5865.2042991,0.00020095,2]
[312009266,1705545039209,-327.24959811,0.00021,2]
[312009267,1705545039218,-1815.75822214,0.00021,2]
[312009268,1705545039227,-1000.0,0.000211,2]
[312009269,1705545039238,-768.79008483,0.00021383,2]
[312009270,1705545039258,-280.0,0.00021702,7]
[312009271,1705545039269,-276000.0,0.000219,2]
[312009272,1705545039280,-166.666666,0.00021918,2]
[312009273,1705545039289,-293.23530462,0.00022,4]
[312009274,1705545039299,-425.62034809,0.00022,2]
[312009275,1705545039309,-3959.1053351,0.00022,2]
[312009276,1705545039320,-155.15540084,0.00022,2]
[312009277,1705545039330,-166.666666,0.00022431,2]
[312009278,1705545039340,-768.79008483,0.0002277,2]
[312009279,1705545039350,-166.666666,0.00022944,2]
[312009280,1705545039361,-166.666666,0.00023456,2]
[312009281,1705545039372,-391.0,0.00023872,7]
[312009282,1705545039382,-166.666666,0.00023969,2]
[312009283,1705545039391,-1570.12942806,0.00024,2]
[312009284,1705545039402,-4010.78536694,0.00024,2]
[312009285,1705545039412,-768.79008483,0.00024158,2]
[312009286,1705545039421,-166.666666,0.00024482,2]
[312009287,1705545039432,-497.89805688,0.0002495,5]
[312009288,1705545039442,-1000.0,0.00024999,3]
[312009289,1705545039452,-1000.0,0.00024999,3]
[312009290,1705545039462,-1000.0,0.00024999,3]
[312009291,1705545039472,-1000.0,0.00024999,3]
[312009292,1705545039481,-1000.0,0.00024999,3]
[312009293,1705545039491,-1000.0,0.00024999,3]
[312009294,1705545039501,-1000.0,0.00024999,3]
[312009295,1705545039511,-1000.0,0.00024999,3]
[312009296,1705545039521,-1024.33788505,0.00024999,3]
[312009297,1705545039531,-3000.0,0.00025,2]
[312009298,1705545039540,-4718.82684458,0.00025,2]
[312009299,1705545039550,-1045.45812768,0.00025,2]
[312009300,1705545039560,-274.5510469,0.00025,2]
[312009301,1705545039570,-678.93201338,0.00025,2]
[312009302,1705545039580,-294.64825726,0.00025,2]
[312009303,1705545039590,-258.44452491,0.00025,2]
[312009304,1705545039599,-155.48748556,0.00025,2]
[312009305,1705545039608,-7294.0,0.00025,2]
[312009306,1705545039618,-768.79008483,0.00025545,2]
[312009307,1705545039628,-39017.08371394,0.00025645,2]
[312009308,1705545039638,-50000.0,0.00025645,2]
[312009309,1705545039648,-50000.0,0.00025645,2]
[312009310,1705545039657,-50000.0,0.00025645,2]
[312009311,1705545039666,-50000.0,0.00025645,2]
[312009312,1705545039676,-50000.0,0.00025645,2]
[312009313,1705545039685,-50000.0,0.00025645,2]
[312009314,1705545039694,-93030.78605981,0.00025645,2]
[312009315,1705545039703,-2986.74424462,0.00025645,2]
[312009316,1705545039713,-526.29712741,0.00026,2]
[312009317,1705545039724,-242.743,0.00026249,2]
[312009318,1705545039735,-200.0,0.00026259,15]
[312009319,1705545039744,-348.0,0.00026259,15]
[312009320,1705545039754,-694.83237512,0.000264,2]
[312009321,1705545039763,-151.0,0.00026564,2]
[312009322,1705545039773,-435.059889,0.0002669,2]
[312009323,1705545039783,-722.46780766,0.00026963,2]
[312009324,1705545039792,-722.46780766,0.00026963,2]
[312009325,1705545039803,-722.46780766,0.00026963,2]
[312009326,1705545039813,-722.46780766,0.00026963,2]
[312009327,1705545039823,-722.46780766,0.00026963,2]
[312009328,1705545039832,-722.46780766,0.00026963,2]
[312009329,1705545039842,-722.46780766,0.00026963,2]
[312009331,1705545039852,-722.46780766,0.00026963,2]
[312009333,1705545039861,-722.46780766,0.00026963,2]
[312009335,1705545039871,-722.46780766,0.00026963,2]
[312009337,1705545039880,-150.95004265,0.00027397,7]
[312009339,1705545039890,-7292.81,0.00027397,3]
[312009341,1705545039899,-6077.34,0.00027397,3]
[312009343,1705545039909,-5064.45,0.00027397,3]
[312009345,1705545039918,-151.0,0.00027485,2]
[312009346,1705545039928,-623.74161876,0.0002772,2]
[312009348,1705545039937,-8323.6275757,0.00027906,5]
[312009350,1705545039946,-154.9690062,0.00028,10]
[312009352,1705545039956,-154.9690062,0.00028,2]
[312009353,1705545039966,-290.00241025,0.00028,2]
[312009355,1705545039975,-345.5207472,0.00028,2]
[312009357,1705545039985,-151.0,0.00028405,2]
[312009359,1705545039994,-6074.52327839,0.00028443,2]
[312009361,1705545040003,-396.113715,0.00028767,2]
[312009362,1705545040013,-575.105045,0.00028767,2]
[312009363,1705545040022,-200.0,0.00028885,15]
[312009364,1705545040031,-200.0,0.00028885,15]
[312009365,1705545040041,-368.0,0.00028885,15]
[312009376,1705545040143,-5000.0,0.00028908,5]
[312009378,1705545040152,-154.9690062,0.00029,2]
[312009380,1705545040162,-2455.73923901,0.00029,2]
[312009382,1705545040171,-1500.0,0.00029,2]
[312009384,1705545040180,-620.18708094,0.00029106,2]
[312009386,1705545040189,-6729.06323054,0.0002928,2]
[312009388,1705545040199,-153.0,0.00029315,2]
[312009390,1705545040207,-198.9993253,0.00029315,2]
[312009392,1705545040216,-231.9716211,0.0002932,2]
[312009394,1705545040225,-151.0,0.00029325,2]
[312009396,1705545040234,-153.23014305,0.00029358,2]
[312009398,1705545040242,-231.9716211,0.00029431,2]
[312009400,1705545040252,-213.00013457,0.000295,30]
[312009402,1705545040261,-231.9716211,0.00029533,2]
[312009404,1705545040270,-153.0,0.00029589,2]
[312009405,1705545040279,-396.113715,0.00029687,2]
[312009406,1705545040289,-575.105045,0.00029687,2]
[312009407,1705545040298,-153.23014305,0.00029696,2]
[312009408,1705545040307,-231.9716211,0.00029702,2]
[312009409,1705545040316,-231.9716211,0.00029738,2]
[312009410,1705545040326,-153.23014305,0.00029793,2]
[312009411,1705545040336,-91618.1378785,0.00029825,5]
[312009412,1705545040345,-5000.0,0.0002991,5]
[312009413,1705545040354,-243.91959085,0.0003,4]
[312009414,1705545040364,-682.23213824,0.0003,3]
[312009415,1705545040373,-232.19740588,0.0003,4]
[312009416,1705545040383,-687.89788967,0.0003,4]
[312009417,1705545040392,-640.81580837,0.0003,4]
[312009418,1705545040402,-154.9690062,0.0003,4]
[312009419,1705545040411,-154.9690062,0.0003,2]
[312009420,1705545040421,-8435.48144009,0.0003,7]
[312009421,1705545040432,-287.25958641,0.0003,4]
[312009422,1705545040441,-1500.0,0.0003,2]
[312009423,1705545040451,-233.0,0.0003,2]
[312009424,1705545040460,-153.23014305,0.0003015,7]
[312009425,1705545040469,-33119.89609229,0.00030218,3]
[312009426,1705545040478,-151.0,0.00030245,2]
[312009427,1705545040488,-12243.87665029,0.00030319,5]
[312009428,1705545040497,-153.23014305,0.00030334,7]
[312009429,1705545040506,-200.41,0.000305,4]
[312009430,1705545040516,-620.00935405,0.00030561,2]
[312009431,1705545040526,-231.9716211,0.00030599,7]
[312009432,1705545040535,-396.113715,0.00030607,2]
[312009433,1705545040544,-575.105045,0.00030607,2]
[312009434,1705545040554,-210.0,0.0003066,30]
[312009435,1705545040563,-606.0,0.0003066,30]
[312009436,1705545040573,-210.0,0.0003067,30]
[312009437,1705545040582,-606.0,0.0003067,30]
[312009438,1705545040593,-210.0,0.0003068,30]
[312009440,1705545040602,-606.0,0.0003068,30]
[312009442,1705545040612,-5000.0,0.00030913,7]